bitfinex/quotes_BTCUSD_20250602
["timestamp","ask_amount","ask_price","bid_price","bid_amount"]
[1748861506487,0.44484549,104390.0,104380.0,0.31162394]
[1748861506697,0.44484549,104390.0,104380.0,0.32958637]
[1748861506942,0.44484549,104390.0,104380.0,0.32734106]
[1748861507250,0.44238453,104390.0,104380.0,0.31162394]
[1748861507449,0.44238453,104390.0,104380.0,0.3014539]
[1748861507651,0.44238453,104390.0,104380.0,0.32839754]
[1748861507853,0.44338453,104390.0,104380.0,0.3014539]
[1748861508059,0.4773689,104390.0,104380.0,0.31043511]
[1748861508269,0.4793689,104390.0,104380.0,0.3014539]
[1748861508678,0.67095887,104390.0,104380.0,0.32555367]
[1748861508881,0.46979018,104390.0,104380.0,0.32839751]
[1748861509084,0.46979018,104390.0,104380.0,0.33513341]
[1748861509293,0.46979018,104390.0,104380.0,0.3081898]
[1748861509493,0.46979018,104390.0,104380.0,0.3014539]
[1748861509695,0.46979018,104390.0,104380.0,0.3350365]
[1748861509899,0.66137941,104390.0,104380.0,0.3350365]
[1748861510107,0.47936954,104390.0,104380.0,0.3350365]
[1748861510513,0.28830329,104390.0,104380.0,0.31936462]
[1748861510769,0.29788211,104390.0,104380.0,0.35290521]
[1748861510973,0.29788211,104390.0,104380.0,0.32606105]
[1748861511180,0.29788211,104390.0,104380.0,0.33500668]
[1748861511590,0.29788211,104390.0,104380.0,0.32829668]
[1748861511807,0.29788211,104390.0,104380.0,0.33500668]
[1748861512230,0.30746102,104390.0,104380.0,0.33500668]
[1748861512653,0.29788175,104390.0,104380.0,0.32829668]
[1748861512861,0.30746102,104390.0,104380.0,0.31935001]
[1748861515102,0.50862961,104390.0,104380.0,0.31935001]
[1748861515562,0.50863016,104390.0,104380.0,0.31935001]
[1748861515826,0.30746147,104390.0,104380.0,0.31935001]
[1748861516068,0.50863016,104390.0,104380.0,0.31935001]
[1748861516699,0.31704093,104390.0,104380.0,0.31935001]
[1748861516932,0.50863016,104390.0,104380.0,0.31935001]
[1748861517964,0.50863016,104390.0,104380.0,0.30977028]
[1748861518304,0.50863016,104390.0,104380.0,0.3193501]
[1748861519403,0.28830284,104390.0,104380.0,0.32892983]
[1748861519661,0.28830238,104390.0,104380.0,0.32892983]
[1748861520323,0.29788156,104390.0,104380.0,0.32892983]
[1748861520700,0.30746083,104390.0,104380.0,0.31935028]
[1748861521121,0.056142,104390.0,104380.0,0.31935028]
[1748861521323,0.46021072,104390.0,104380.0,0.31935028]
[1748861524909,0.0274051,104390.0,104380.0,0.75918906]
[1748861525114,0.003,104390.0,104380.0,0.85504235]
[1748861525340,0.003,104390.0,104380.0,0.83715837]
[1748861525560,0.003,104390.0,104380.0,1.53538709]
[1748861525859,0.003,104390.0,104380.0,1.88455014]
[1748861526081,0.003,104390.0,104380.0,1.91451575]
[1748861526082,0.001,104390.0,104380.0,1.91451575]
[1748861526309,0.001,104390.0,104380.0,1.90526081]
[1748861526530,0.43279709,104420.0,104410.0,0.25688429]
[1748861526965,0.44237361,104420.0,104410.0,0.25688429]
[1748861527382,0.03830489,104420.0,104410.0,0.25688429]
[1748861527580,0.03830489,104420.0,104410.0,0.26361728]
[1748861528221,0.03830489,104420.0,104410.0,0.2635993]
[1748861529485,0.0628597,104420.0,104410.0,0.25688429]
[1748861529732,0.04370684,104420.0,104410.0,0.26359498]
[1748861529932,0.05528318,104420.0,104410.0,0.26359496]
[1748861530164,0.0648597,104420.0,104410.0,0.25688429]
[1748861530302,0.05528318,104420.0,104410.0,0.25688429]
[1748861530925,0.0648597,104420.0,104410.0,0.25688429]
[1748861531282,0.0648597,104420.0,104410.0,0.26359495]
[1748861531480,0.07443631,104420.0,104410.0,0.26359495]
[1748861531699,0.07443631,104420.0,104410.0,0.25688429]
[1748861532988,0.0648597,104420.0,104410.0,0.26359496]
[1748861533201,0.0648597,104420.0,104410.0,0.25688429]
[1748861534069,0.07443631,104420.0,104410.0,0.26359496]
[1748861534584,0.0648597,104420.0,104410.0,0.26359496]
[1748861535345,0.0648597,104420.0,104410.0,0.25688429]
[1748861535547,0.0648597,104420.0,104410.0,0.26359497]
[1748861536361,0.62169235,104420.0,104410.0,0.00671068]
[1748861536607,0.62169235,104420.0,104400.0,0.23767097]
[1748861536608,0.2107075,104410.0,104400.0,0.23767097]
[1748861536814,0.2107075,104410.0,104400.0,0.02700863]
[1748861536815,0.61431086,104410.0,104400.0,0.02700863]
[1748861537027,0.61431086,104410.0,104400.0,0.22857627]
[1748861537258,0.90839086,104410.0,104400.0,0.23815453]
[1748861537887,0.90839086,104410.0,104400.0,0.24015453]
[1748861538124,0.90839086,104410.0,104400.0,0.26723252]
[1748861538347,0.72641595,104410.0,104400.0,0.27681042]
[1748861538552,0.3132346,104410.0,104400.0,0.27681042]
[1748861538967,0.3132346,104410.0,104400.0,0.28352173]
[1748861539175,0.0191546,104410.0,104400.0,0.27681042]
[1748861539810,0.0191546,104410.0,104400.0,0.28597236]
[1748861540025,1.02782665,104420.0,104410.0,0.25588429]
[1748861540026,0.02455481,104420.0,104410.0,0.25588429]
[1748861540233,0.02872379,104440.0,104430.0,0.2380422]
[1748861540437,0.22979617,104440.0,104430.0,0.23804229]
[1748861540648,0.23937077,104440.0,104430.0,0.26651753]
[1748861540851,0.03829839,104440.0,104430.0,0.27609268]
[1748861541703,0.23937077,104440.0,104430.0,0.25694229]
[1748861541908,0.22022185,104440.0,104430.0,0.23804247]
[1748861542113,0.22322185,104440.0,104430.0,0.23804247]
[1748861542663,0.22522185,104440.0,104430.0,0.22846714]
[1748861542937,0.22522185,104440.0,104430.0,0.23804256]
[1748861543142,0.22522185,104440.0,104430.0,0.21889154]
[1748861543343,0.62882521,104440.0,104430.0,0.21066714]
[1748861543697,0.61925052,104440.0,104430.0,0.21066714]
[1748861543904,0.21066668,104430.0,104420.0,0.20991743]
[1748861544100,0.20109163,104430.0,104420.0,0.22907065]
[1748861544440,0.20109163,104430.0,104420.0,0.23864708]
[1748861544441,0.21066723,104430.0,104420.0,0.23864708]
[1748861544804,0.22024256,104430.0,104420.0,0.24822342]
[1748861544997,0.22024256,104430.0,104420.0,0.25779967]
[1748861545197,0.22224256,104430.0,104420.0,0.25779967]
[1748861546388,0.03072589,104430.0,104420.0,0.25779866]
[1748861546600,0.04030149,104430.0,104420.0,0.27539866]
[1748861547720,0.24139303,104430.0,104420.0,0.27539866]
[1748861548318,0.04030149,104430.0,104420.0,0.27539866]
[1748861548560,0.04030149,104430.0,104420.0,0.30918009]
[1748861548987,0.04987719,104430.0,104420.0,0.29127575]
[1748861549161,0.04987719,104430.0,104420.0,0.30919618]
[1748861549315,0.04987719,104430.0,104420.0,0.28169969]
[1748861549521,0.04987719,104430.0,104420.0,0.29962012]
[1748861549918,0.04987719,104430.0,104420.0,0.22865106]
[1748861549919,0.23181798,104430.0,104420.0,0.22865106]
[1748861550126,0.23181807,104430.0,104420.0,0.25738026]
[1748861550334,0.23181807,104430.0,104420.0,0.27530069]
[1748861550533,0.23181807,104430.0,104420.0,0.25738026]
[1748861550768,0.23181807,104430.0,104420.0,0.25738216]
[1748861550993,0.22224228,104430.0,104420.0,0.26695822]
[1748861551181,0.24139377,104430.0,104420.0,0.27530259]
[1748861551384,0.24139377,104430.0,104420.0,0.25738216]
[1748861551586,0.24139377,104430.0,104420.0,0.27530259]
[1748861551789,0.24139377,104430.0,104420.0,0.25738216]
[1748861551934,0.24139377,104430.0,104420.0,0.2915989]
[1748861552346,0.24139377,104430.0,104420.0,0.27367933]
[1748861552525,0.24139377,104430.0,104420.0,0.28202536]
[1748861552820,0.24139377,104430.0,104420.0,0.28202537]
[1748861553025,0.22224238,104430.0,104420.0,0.28202537]
[1748861553165,0.23181817,104430.0,104420.0,0.28202537]
[1748861553681,0.02115084,104430.0,104420.0,0.29160143]
[1748861553879,0.03072644,104430.0,104420.0,0.30990143]
[1748861554080,0.03072644,104430.0,104420.0,0.2919795]
[1748861554327,0.03072644,104430.0,104420.0,0.30990438]
[1748861554534,0.03072644,104430.0,104420.0,0.30318441]
[1748861554725,0.03072644,104430.0,104420.0,0.30990693]
[1748861554927,0.02115038,104430.0,104420.0,0.30990693]
[1748861555106,0.03072598,104430.0,104420.0,0.30990693]
[1748861555321,0.03072589,104430.0,104420.0,0.30990693]
[1748861555516,0.03072589,104430.0,104420.0,0.28525767]
[1748861555760,0.02115038,104430.0,104420.0,0.3031844]
[1748861555961,0.02115038,104430.0,104420.0,0.30990692]
[1748861556193,0.03072598,104430.0,104420.0,0.30990689]
[1748861556327,0.03072598,104430.0,104420.0,0.29198075]
[1748861556678,0.03072589,104430.0,104420.0,0.28525767]
[1748861557503,0.03072589,104430.0,104420.0,0.30318588]
[1748861557650,0.03072589,104430.0,104420.0,0.28525767]
[1748861558224,0.002,104430.0,104420.0,0.28525767]
[1748861558501,0.02115001,104430.0,104420.0,0.28525767]
[1748861558701,0.02115001,104430.0,104420.0,0.28527152]
[1748861559046,0.02115001,104430.0,104420.0,0.30320437]
[1748861559282,0.02115001,104430.0,104420.0,0.28527152]
[1748861559484,0.03072534,104430.0,104420.0,0.28527152]
[1748861559684,0.02115001,104430.0,104420.0,0.2920041]
[1748861559898,0.03072525,104430.0,104420.0,0.28527152]
[1748861560328,0.03072525,104430.0,104420.0,0.2920041]
[1748861560540,0.04030058,104430.0,104420.0,0.28527152]
[1748861560743,0.04030058,104430.0,104420.0,0.2920041]
[1748861561037,0.04030058,104430.0,104420.0,0.28527152]
[1748861561297,0.04987609,104430.0,104420.0,0.28527152]
[1748861561895,0.04987673,104430.0,104420.0,0.28527152]
[1748861562584,0.03072562,104430.0,104420.0,0.28527152]
[1748861562784,0.04030104,104430.0,104420.0,0.309958]
[1748861563190,0.04030104,104430.0,104420.0,0.29200449]
[1748861563395,0.04030104,104430.0,104420.0,0.30995796]
[1748861563798,0.04030104,104430.0,104420.0,0.30995795]
[1748861564745,0.04030104,104430.0,104420.0,0.30995344]
[1748861564965,0.04987655,104430.0,104420.0,0.30995344]
[1748861565139,0.04987655,104430.0,104420.0,0.28527193]
[1748861565451,0.04987655,104430.0,104420.0,0.29200325]
[1748861565586,0.03072562,104430.0,104420.0,0.30995344]
[1748861566238,0.04030113,104430.0,104420.0,0.30995344]
[1748861566445,0.04030113,104430.0,104420.0,0.30995134]
[1748861566673,0.04030113,104430.0,104420.0,0.28527328]
[1748861567059,0.04030113,104430.0,104420.0,0.30322137]
[1748861567258,0.04030113,104430.0,104420.0,0.28527328]
[1748861567445,0.04030113,104430.0,104420.0,0.3099519]
[1748861567953,0.04030104,104430.0,104420.0,0.30322137]
[1748861568152,0.04030104,104430.0,104420.0,0.28527328]
[1748861569002,0.04030104,104430.0,104420.0,0.29200381]
[1748861569544,0.04030104,104430.0,104420.0,0.31668243]
[1748861570171,0.04987664,104430.0,104420.0,0.3166816]
[1748861570400,0.04987664,104430.0,104420.0,0.31668023]
[1748861570604,0.04987664,104430.0,104420.0,0.30750579]
[1748861570807,0.38987664,104430.0,104420.0,0.3234246]
[1748861571427,0.38987664,104430.0,104420.0,0.32342463]
[1748861571889,0.38987664,104430.0,104420.0,0.30547812]
[1748861572092,0.38987664,104430.0,104420.0,0.29874818]
[1748861572310,0.38987664,104430.0,104420.0,0.32342464]
[1748861572743,0.38987664,104430.0,104420.0,0.34137064]
[1748861573703,0.38987664,104430.0,104420.0,0.3413706]
[1748861574858,0.38987738,104430.0,104420.0,0.33179469]
[1748861575125,0.37072635,104430.0,104420.0,0.31264229]
[1748861575336,0.38030205,104430.0,104420.0,0.29754223]
[1748861575543,0.57181789,104430.0,104420.0,0.29754223]
[1748861575960,0.38030205,104430.0,104420.0,0.3154885]
[1748861576749,0.38030205,104430.0,104420.0,0.32221835]
[1748861576954,0.38030205,104430.0,104420.0,0.3154885]
[1748861577152,0.57181789,104430.0,104420.0,0.3154885]
[1748861577353,0.58139368,104430.0,104420.0,0.33343477]
[1748861577557,0.58139368,104430.0,104420.0,0.3154885]
[1748861577735,0.58139368,104430.0,104420.0,0.32221835]
[1748861577918,0.58139368,104430.0,104420.0,0.3154885]
[1748861578118,0.58139368,104430.0,104420.0,0.33343477]
[1748861578360,0.58139368,104430.0,104420.0,0.34016468]
[1748861578562,0.58139368,104430.0,104420.0,0.33097574]
[1748861578771,0.58139368,104430.0,104420.0,0.32221863]
[1748861578970,0.58139368,104430.0,104420.0,0.34016513]
[1748861579839,0.36115075,104430.0,104420.0,0.34016513]
[1748861579989,0.37072635,104430.0,104420.0,0.34016513]
[1748861580437,0.57181789,104430.0,104420.0,0.34016513]
[1748861580846,0.38030205,104430.0,104420.0,0.34016513]
[1748861581231,0.342,104430.0,104420.0,0.31548869]
[1748861581457,0.28763973,104490.0,104430.0,0.19151584]
[1748861581661,0.02871462,104470.0,104460.0,0.65259403]
[1748861581861,0.02871462,104470.0,104460.0,0.26775275]
[1748861581862,0.03828647,104470.0,104460.0,0.26775275]
[1748861582178,0.00957185,104470.0,104460.0,0.22652366]
[1748861582380,0.22015787,104470.0,104460.0,0.27328243]
[1748861582585,0.5505863,104470.0,104460.0,0.2445436]
[1748861582745,0.2125863,104470.0,104460.0,0.24580339]
[1748861582950,0.21307272,104470.0,104460.0,0.28157541]
[1748861583189,0.55307272,104470.0,104460.0,0.28157541]
[1748861583441,0.55307272,104470.0,104460.0,0.27612722]
[1748861584092,0.55307272,104470.0,104460.0,0.26655473]
[1748861584493,0.36163021,104470.0,104460.0,0.25698215]
[1748861584711,0.37120233,104470.0,104460.0,0.26655482]
[1748861584850,0.37120233,104470.0,104460.0,0.27612722]
[1748861585071,0.36163021,104470.0,104460.0,0.27609584]
[1748861585489,0.36163021,104470.0,104460.0,0.26693772]
[1748861586381,0.34248642,104470.0,104460.0,0.76524375]
[1748861586660,0.00248642,104470.0,104460.0,0.87024886]
[1748861587101,0.00248642,104470.0,104460.0,0.87024871]
[1748861587471,0.00248642,104470.0,104460.0,0.46764535]
[1748861587852,0.00248642,104470.0,104460.0,0.29518838]
[1748861587853,0.01005772,104470.0,104460.0,0.29518838]
[1748861588064,0.00048642,104470.0,104460.0,0.29618838]
[1748861588628,0.00048642,104470.0,104460.0,0.28703772]
[1748861590817,0.00048642,104470.0,104460.0,0.69064108]
[1748861592309,0.00048642,104470.0,104460.0,0.78649538]
[1748861592537,0.00048642,104470.0,104460.0,0.8023283]
[1748861592763,0.00048642,104470.0,104460.0,0.83133656]
[1748861592974,0.00048642,104470.0,104460.0,0.83802873]
[1748861593198,0.00048642,104470.0,104460.0,0.83801139]
[1748861594834,0.00048642,104470.0,104460.0,0.82016999]
[1748861595062,0.00048642,104470.0,104460.0,1.21531451]
[1748861595291,0.00048642,104470.0,104460.0,1.22200122]
[1748861596432,0.00048642,104470.0,104460.0,1.22200094]
[1748861596668,0.00048642,104470.0,104460.0,1.22200083]
[1748861596893,0.00048642,104470.0,104460.0,1.22199598]
[1748861597116,0.00048642,104470.0,104460.0,1.19747843]
[1748861597372,0.00038369,104470.0,104460.0,1.19747843]
[1748861597630,0.00038369,104470.0,104460.0,1.2153083]
[1748861597844,0.00038369,104470.0,104460.0,1.19747843]
[1748861598056,0.00038369,104470.0,104460.0,1.2219945]
[1748861599169,0.00038369,104470.0,104460.0,1.23978437]
[1748861600489,0.00038369,104470.0,104460.0,1.2152683]
[1748861600702,0.00038369,104470.0,104460.0,1.23979208]
[1748861600924,0.00038369,104470.0,104460.0,1.23979495]
[1748861601140,0.00038369,104470.0,104460.0,1.23310623]
[1748861601375,0.00038369,104470.0,104460.0,1.23979492]
[1748861601613,0.00038369,104470.0,104460.0,0.83619156]
[1748861601894,0.00038369,104470.0,104460.0,0.83619151]
[1748861602363,0.00038369,104470.0,104460.0,0.81835498]
[1748861602575,0.00038369,104470.0,104460.0,0.81166627]
[1748861602801,0.00038369,104470.0,104460.0,0.83620492]
[1748861603265,0.00038369,104470.0,104460.0,1.23980828]
[1748861603706,0.00038369,104470.0,104460.0,1.23984207]
[1748861604196,0.00038369,104470.0,104460.0,1.23984206]
[1748861604663,0.00038369,104470.0,104460.0,1.23985029]
[1748861605095,0.00038369,104470.0,104460.0,0.83625039]
[1748861605310,0.00038369,104470.0,104460.0,1.23985375]
[1748861605526,0.00038369,104470.0,104460.0,1.22198037]
[1748861605773,0.00038369,104470.0,104460.0,1.23985375]
[1748861605981,0.00038369,104470.0,104460.0,1.22198037]
[1748861606198,0.00038369,104470.0,104460.0,1.23985375]
[1748861606413,0.00038369,104470.0,104460.0,1.2445779]
[1748861606632,0.00038369,104470.0,104460.0,1.22670452]
[1748861607080,0.00038369,104470.0,104460.0,1.23340703]
[1748861607296,0.00038369,104470.0,104460.0,1.2445779]
[1748861607512,0.00038369,104470.0,104460.0,1.23340703]
[1748861607733,0.0177,104490.0,104480.0,0.21056623]
[1748861607978,0.03842487,104490.0,104480.0,0.25687801]
[1748861608172,0.03842487,104490.0,104480.0,0.24730763]
[1748861608648,0.03842487,104490.0,104480.0,0.25646999]
[1748861608868,0.04999498,104490.0,104480.0,0.25646999]
[1748861609120,0.04999498,104490.0,104480.0,0.27476999]
[1748861609373,0.05199498,104490.0,104480.0,0.27476999]
[1748861609619,0.23383185,104490.0,104480.0,0.24689943]
[1748861609813,0.57383185,104490.0,104480.0,0.28110703]
[1748861610030,0.58340214,104490.0,104480.0,0.29067769]
[1748861610236,0.36328567,104490.0,104480.0,0.29067714]
[1748861610457,0.34414583,104490.0,104480.0,0.29175935]
[1748861610680,0.36328531,104490.0,104480.0,0.29175929]
[1748861610885,0.36328531,104490.0,104480.0,0.34551144]
[1748861611115,0.40250969,104490.0,104480.0,0.34551138]
[1748861611337,0.04337021,104490.0,104480.0,0.34551138]
[1748861611555,0.04337021,104490.0,104480.0,1.04271403]
[1748861611802,0.04137021,104490.0,104480.0,1.04271403]
[1748861612018,0.05193977,104490.0,104480.0,0.63911067]
[1748861612266,0.04237021,104490.0,104480.0,0.63911067]
[1748861612482,0.04037021,104490.0,104480.0,0.63911323]
[1748861612694,0.03937021,104490.0,104480.0,0.63911323]
[1748861612973,0.03937021,104490.0,104480.0,0.63239084]
[1748861613187,0.04893977,104490.0,104480.0,0.63339084]
[1748861613406,0.04893977,104490.0,104480.0,0.64010531]
[1748861613633,0.04893977,104490.0,104480.0,0.64010529]
[1748861614074,0.04893986,104490.0,104480.0,0.64010529]
[1748861614290,0.03937021,104490.0,104480.0,0.64010529]
[1748861614519,0.04893967,104490.0,104480.0,0.64111032]
[1748861614733,0.04893967,104490.0,104480.0,0.64960128]
[1748861614953,0.05850923,104490.0,104480.0,0.64111116]
[1748861615179,0.05850923,104490.0,104480.0,0.63439667]
[1748861615396,0.04893967,104490.0,104480.0,0.64111336]
[1748861615633,0.05850932,104490.0,104480.0,0.64111336]
[1748861615870,0.04893967,104490.0,104480.0,0.63439669]
[1748861616124,0.05850932,104490.0,104480.0,0.64111002]
[1748861616392,0.04893967,104490.0,104480.0,0.64110559]
[1748861616611,0.04893967,104490.0,104480.0,0.64110375]
[1748861616814,0.04893967,104490.0,104480.0,0.64110376]
[1748861617025,0.04893967,104490.0,104480.0,0.64110377]
[1748861617470,0.05850932,104490.0,104480.0,0.64110377]
[1748861617685,0.05850932,104490.0,104480.0,0.65256428]
[1748861617892,0.04893967,104490.0,104480.0,0.65256428]
[1748861618102,0.05850923,104490.0,104480.0,0.65256428]
[1748861618309,0.05850923,104490.0,104480.0,0.67896493]
[1748861618520,0.05850923,104490.0,104480.0,0.65256349]
[1748861618698,0.05850923,104490.0,104480.0,0.71818166]
[1748861618996,0.0776488,104490.0,104480.0,0.62786166]
[1748861619210,0.0776488,104490.0,104480.0,0.65248311]
[1748861619472,0.0776488,104490.0,104480.0,0.35896314]
[1748861619687,0.0776488,104490.0,104480.0,0.04700322]
[1748861619688,1.43362292,104490.0,104480.0,0.04700322]
[1748861619895,1.03001956,104490.0,104480.0,0.03783481]
[1748861620103,1.03001956,104490.0,104480.0,0.229259]
[1748861620313,1.30533956,104490.0,104480.0,0.03783481]
[1748861620522,0.89216628,104490.0,104480.0,0.04600444]
[1748861621137,0.89216628,104490.0,104480.0,0.04500444]
[1748861621366,0.89316628,104490.0,104480.0,0.04500444]
[1748861621784,0.59964628,104490.0,104480.0,0.24599983]
[1748861621992,0.68988628,104490.0,104480.0,0.0450059]
[1748861622636,1.09348964,104490.0,104480.0,0.0450059]
[1748861623274,1.09348964,104490.0,104480.0,0.03583481]
[1748861624378,1.09348964,104490.0,104480.0,0.04500588]
[1748861624587,1.09348964,104490.0,104480.0,0.23643007]
[1748861624800,1.09348964,104490.0,104480.0,0.24600127]
[1748861625249,1.09348964,104490.0,104480.0,0.25557238]
[1748861626077,1.09348964,104490.0,104480.0,0.2651434]
[1748861627418,1.09348964,104490.0,104480.0,0.26554326]
[1748861627635,0.69072649,104490.0,104480.0,0.30248492]
[1748861627978,0.69072649,104490.0,104480.0,0.32039332]
[1748861628835,0.69072649,104490.0,104480.0,0.32039412]
[1748861628836,0.50845477,104490.0,104480.0,0.32039412]
[1748861629034,0.50845477,104490.0,104480.0,0.30248465]
[1748861629432,0.50845477,104490.0,104480.0,0.29331365]
[1748861629748,0.54750281,104490.0,104480.0,0.29331365]
[1748861629954,0.54750281,104490.0,104480.0,0.31122283]
[1748861630139,0.54750281,104490.0,104480.0,0.30165208]
[1748861630341,0.54750281,104490.0,104480.0,0.2837429]
[1748861631043,0.53793289,104490.0,104480.0,0.23683011]
[1748861631253,0.96023625,104490.0,104480.0,0.24640104]
[1748861631659,0.94153625,104490.0,104480.0,0.24640104]
[1748861632285,0.94153625,104490.0,104480.0,0.26450104]
[1748861633978,0.5475029,104490.0,104480.0,0.27407188]
[1748861634349,0.5475029,104490.0,104480.0,0.28364263]
[1748861634551,0.5475029,104490.0,104480.0,0.30074263]
[1748861635205,0.5475029,104490.0,104480.0,0.28364263]
[1748861635406,0.5475029,104490.0,104480.0,0.29321319]
[1748861635717,0.5475029,104490.0,104480.0,0.31031329]
[1748861636145,0.5475029,104490.0,104480.0,0.29321329]
[1748861636399,0.5475029,104490.0,104480.0,0.28364263]
[1748861637396,0.5475029,104490.0,104480.0,0.29321329]
[1748861638026,0.13985769,104490.0,104480.0,0.31031274]
[1748861638236,0.15899754,104490.0,104480.0,0.33739373]
[1748861638467,0.15899744,104490.0,104480.0,0.3194838]
[1748861638678,0.49899744,104490.0,104480.0,0.3194838]
[1748861638925,0.50856755,104490.0,104480.0,0.34410991]
[1748861639345,0.48942743,104490.0,104480.0,0.34410991]
[1748861639555,0.49899744,104490.0,104480.0,0.32620001]
[1748861639764,0.49899744,104490.0,104480.0,0.34410991]
[1748861639970,0.50856755,104490.0,104480.0,0.34410991]
[1748861640199,0.49899744,104490.0,104480.0,0.34410992]
[1748861640415,0.48942743,104490.0,104480.0,0.34410992]
[1748861640642,0.39918743,104490.0,104480.0,0.31948381]
[1748861641063,0.40875744,104490.0,104480.0,0.34410872]
[1748861641269,0.39918743,104490.0,104480.0,0.31948381]
[1748861641525,0.40875744,104490.0,104480.0,0.31948381]
[1748861641793,0.40875744,104490.0,104480.0,0.34410786]
[1748861642009,0.40875744,104490.0,104480.0,0.31948381]
[1748861642452,0.39918743,104490.0,104480.0,0.31948381]
[1748861642672,0.40875744,104490.0,104480.0,0.33739281]
[1748861642920,0.39918743,104490.0,104480.0,0.33739323]
[1748861643123,0.40875744,104490.0,104480.0,0.31948441]
[1748861643331,0.39918743,104490.0,104480.0,0.31948441]
[1748861643950,0.40875744,104490.0,104480.0,0.31948441]
[1748861644184,0.39918743,104490.0,104480.0,0.31948441]
[1748861644402,0.3896176,104490.0,104480.0,0.31948441]
[1748861644630,0.39918734,104490.0,104480.0,0.33739323]
[1748861644857,0.39918734,104490.0,104480.0,0.34410949]
[1748861645065,0.40875717,104490.0,104480.0,0.31948441]
[1748861645274,0.40875717,104490.0,104480.0,0.32620027]
[1748861645500,0.40875717,104490.0,104480.0,0.31948441]
[1748861646167,0.40875717,104490.0,104480.0,0.32620096]
[1748861646622,0.40875717,104490.0,104480.0,0.33739796]
[1748861646829,0.40875717,104490.0,104480.0,0.35531222]
[1748861647265,0.40875717,104490.0,104480.0,0.37994435]
[1748861647484,0.40875717,104490.0,104480.0,0.36203008]
[1748861647941,0.41832718,104490.0,104480.0,0.36203008]
[1748861648358,0.40875717,104490.0,104480.0,0.37994855]
[1748861648564,0.40875717,104490.0,104480.0,0.36203008]
[1748861649233,0.41832718,104490.0,104480.0,0.36203008]
[1748861649446,0.40875717,104490.0,104480.0,0.36203008]
[1748861649650,0.41832709,104490.0,104480.0,0.379958]
[1748861650635,0.41832709,104490.0,104480.0,0.42428926]
[1748861650839,0.40875717,104490.0,104480.0,0.37996009]
[1748861651043,0.40875717,104490.0,104480.0,0.39788804]
[1748861651248,0.41832718,104490.0,104480.0,0.39788801]
[1748861651824,0.41832718,104490.0,104480.0,0.39788803]
[1748861652381,0.3896176,104490.0,104480.0,0.39788803]
[1748861652584,0.39918743,104490.0,104480.0,0.37996009]
[1748861652788,0.39918743,104490.0,104480.0,0.39788801]
[1748861653196,0.39918743,104490.0,104480.0,0.39788799]
[1748861653552,0.40875735,104490.0,104480.0,0.39788799]
[1748861653755,0.40875735,104490.0,104480.0,0.39788383]
[1748861654134,0.40875735,104490.0,104480.0,0.39788382]
[1748861654584,0.40875735,104490.0,104480.0,0.39788392]
[1748861655011,0.39918743,104490.0,104480.0,0.39788392]
[1748861655423,0.39918743,104490.0,104480.0,0.39788196]
[1748861655868,0.40875717,104490.0,104480.0,0.39788196]
[1748861656282,0.40875717,104490.0,104480.0,0.39788194]
[1748861656485,0.40875717,104490.0,104480.0,0.39788091]
[1748861656486,0.40875708,104490.0,104480.0,0.39788091]
[1748861656706,0.39918734,104490.0,104480.0,0.37996019]
[1748861656911,0.40875717,104490.0,104480.0,0.37996019]
[1748861657110,0.39918734,104490.0,104480.0,0.37996019]
[1748861657313,0.39918734,104490.0,104480.0,0.39788084]
[1748861657314,0.39918725,104490.0,104480.0,0.39788084]
[1748861657520,0.3896176,104490.0,104480.0,0.37996019]
[1748861657733,0.39918725,104490.0,104480.0,0.37996019]
[1748861658591,0.39918725,104490.0,104480.0,0.39788042]
[1748861658793,0.39918725,104490.0,104480.0,0.37996076]
[1748861659431,0.39918725,104490.0,104480.0,0.39788042]
[1748861659665,0.39918725,104490.0,104480.0,0.37996076]
[1748861660053,0.3896176,104490.0,104480.0,0.37996076]
[1748861660260,0.40875754,104490.0,104480.0,0.37996076]
[1748861660480,1.01333697,104490.0,104480.0,0.31604915]
[1748861660720,0.8219311,104490.0,104480.0,0.35359056]
[1748861660977,0.41832774,104490.0,104480.0,0.36316112]
[1748861661213,0.41832774,104490.0,104480.0,0.38107985]
[1748861661463,0.82142552,104490.0,104480.0,0.36316112]
[1748861661677,0.82142552,104490.0,104480.0,0.38107985]
[1748861661900,1.01283139,104490.0,104480.0,0.36316112]
[1748861662156,0.82142552,104490.0,104480.0,0.36316112]
[1748861662375,0.82142552,104490.0,104480.0,0.38107988]
[1748861662608,0.82142552,104490.0,104480.0,0.38108106]
[1748861662845,0.82142552,104490.0,104480.0,0.39899982]
[1748861663045,1.02240168,104490.0,104480.0,0.38942926]
[1748861663314,0.60973434,104490.0,104480.0,0.38942926]
[1748861663954,0.60973434,104490.0,104480.0,0.38943174]
[1748861664165,0.60973434,104490.0,104480.0,0.3990023]
[1748861664802,0.60973434,104490.0,104480.0,0.37986117]
[1748861665017,0.40875818,104490.0,104480.0,0.38943183]
[1748861665256,0.40875818,104490.0,104480.0,0.39900239]
[1748861665707,0.39918798,104490.0,104480.0,0.39900788]
[1748861665914,0.41832755,104490.0,104480.0,0.40028115]
[1748861666340,0.42789775,104490.0,104480.0,0.40028115]
[1748861666580,0.42789775,104490.0,104480.0,0.39110279]
[1748861666790,0.42789775,104490.0,104480.0,0.40028507]
[1748861667473,0.42789775,104490.0,104480.0,0.42970776]
[1748861667679,0.42789775,104490.0,104480.0,0.41176293]
[1748861668581,0.42789775,104490.0,104480.0,0.42970776]
[1748861669230,0.41832755,104490.0,104480.0,0.42970776]
[1748861669440,0.41832755,104490.0,104480.0,0.42970781]
[1748861670073,0.04004804,104490.0,104480.0,0.83279779]
[1748861670514,0.04004804,104490.0,104480.0,0.81213765]
[1748861670741,0.04004804,104490.0,104480.0,0.8327921]
[1748861670961,0.04004804,104490.0,104480.0,0.83279208]
[1748861671175,0.03904804,104490.0,104480.0,0.83279208]
[1748861671617,0.37827603,104500.0,104490.0,0.25731564]
[1748861671824,0.37827603,104500.0,104490.0,0.28443519]
[1748861672044,0.57923295,104500.0,104490.0,0.27480511]
[1748861672463,0.57923295,104500.0,104490.0,0.26643901]
[1748861672675,0.57923295,104500.0,104490.0,0.28437269]
[1748861672887,0.57923295,104500.0,104490.0,0.26643901]
[1748861673112,0.57923295,104500.0,104490.0,0.22815987]
[1748861673341,1.00571781,104500.0,104490.0,0.02711747]
[1748861673587,1.02381781,104500.0,104490.0,0.02711747]
[1748861674015,0.58342783,104500.0,104490.0,0.23766357]
[1748861674238,0.58442783,104500.0,104490.0,0.25656357]
[1748861674464,0.58442783,104500.0,104490.0,0.25656363]
[1748861674690,0.57485855,104500.0,104490.0,0.22905902]
[1748861674964,0.97794853,104500.0,104490.0,0.24699293]
[1748861675409,0.97794853,104500.0,104490.0,0.22905902]
[1748861675628,0.97794853,104500.0,104490.0,0.26492684]
[1748861675844,0.97794853,104500.0,104490.0,0.24699293]
[1748861676066,0.97794853,104500.0,104490.0,0.26492684]
[1748861676514,0.57485855,104500.0,104490.0,0.24699293]
[1748861676941,0.57485855,104500.0,104490.0,0.26492643]
[1748861677155,0.57485855,104500.0,104490.0,0.24699293]
[1748861678228,0.57485855,104500.0,104490.0,0.26492643]
[1748861678813,0.57485855,104500.0,104490.0,0.26492596]